fUSD/lending_fUSD_20240220
["ID","MTS","AMOUNT","RATE_DAILY","PERIOD"]
[314525188,1708404650432,-521.88283515,0.00036468,2]
[314525189,1708404650447,-535.74007746,0.00036468,2]
[314525190,1708404650463,-500.0,0.00036468,2]
[314525191,1708404650478,-500.0,0.00036468,2]
[314525192,1708404650493,-500.0,0.00036468,2]
[314525193,1708404650508,-500.0,0.00036468,2]
[314525194,1708404650523,-500.0,0.00036468,2]
[314525195,1708404650539,-500.0,0.00036468,2]
[314525196,1708404650554,-500.0,0.00036468,2]
[314525197,1708404650570,-500.0,0.00036468,2]
[314525198,1708404650585,-500.0,0.00036468,2]
[314525199,1708404650601,-527.58336394,0.00036468,2]
[314525200,1708404650616,-500.0,0.00036468,2]
[314525201,1708404650632,-500.0,0.00036468,2]
[314525202,1708404650647,-512.80956793,0.00036468,2]
[314525203,1708404650661,-500.0,0.00036468,2]
[314525204,1708404650677,-500.0,0.00036468,2]
[314525205,1708404650692,-500.0,0.00036468,2]
[314525206,1708404650707,-500.0,0.00036468,2]
[314525207,1708404650721,-811.11,0.00036468,2]
[314525208,1708404650736,-373.40714081,0.00036468,2]
[314525209,1708404650750,-527.84,0.00036468,2]
[314525210,1708404650765,-500.0,0.00036468,2]
[314525211,1708404650780,-500.0,0.00036468,2]
[314525212,1708404650795,-500.0,0.00036468,2]
[314525213,1708404650810,-500.0,0.00036468,2]
[314525214,1708404650825,-500.0,0.00036468,2]
[314525215,1708404650839,-500.0,0.00036468,2]
[314525216,1708404650854,-321.21370928,0.00036468,2]
[314525217,1708404650869,-500.0,0.00036468,2]
[314525218,1708404650885,-632.64788814,0.00036468,2]
[314525219,1708404650903,-500.0,0.00036468,2]
[314525220,1708404650913,-520.24754824,0.00036468,2]
[314525221,1708404650922,-500.0,0.00036468,2]
[314525222,1708404650932,-500.0,0.00036468,2]
[314525223,1708404650941,-500.0,0.00036468,2]
[314525224,1708404650951,-641.07,0.00036468,2]
[314525225,1708404650960,-500.0,0.00036468,2]
[314525226,1708404650972,-500.0,0.00036468,2]
[314525227,1708404650981,-500.0,0.00036468,2]
[314525228,1708404650992,-500.0,0.00036468,2]
[314525229,1708404651001,-500.0,0.00036468,2]
[314525230,1708404651010,-500.0,0.00036468,2]
[314525231,1708404651019,-504.61644005,0.00036468,2]
[314525232,1708404651334,-500.0,0.00036468,2]
[314525233,1708404651355,-500.0,0.00036468,2]
[314525234,1708404651375,-500.0,0.00036468,2]
[314525235,1708404651396,-500.0,0.00036468,2]
[314525236,1708404651407,-500.0,0.00036468,2]
[314525237,1708404651418,-500.0,0.00036468,2]
[314525238,1708404651427,-500.0,0.00036468,2]
[314525239,1708404651436,-707.46,0.00036468,2]
[314525240,1708404651445,-500.0,0.00036468,2]
[314525241,1708404651455,-500.0,0.00036468,2]
[314525242,1708404651464,-644.67,0.00036468,2]
[314525243,1708404651473,-556.16371164,0.00036468,2]
[314525244,1708404651482,-500.0,0.00036468,2]
[314525245,1708404651493,-500.0,0.00036468,2]
[314525246,1708404651502,-533.06265322,0.00036468,2]
[314525247,1708404651512,-500.0,0.00036468,2]
[314525248,1708404651523,-500.0,0.00036468,2]
[314525249,1708404651532,-500.0,0.00036468,2]
[314525250,1708404651542,-500.0,0.00036468,2]
[314525251,1708404651554,-154.67416129,0.00036476,2]
[314525252,1708404651565,-151.0212031,0.00036498,7]
[314525253,1708404651576,-226.26888901,0.00036499,2]
[314525254,1708404651589,-500.0,0.00036499,2]
[314525255,1708404651602,-910.82,0.00036499,2]
[314525256,1708404651616,-176.58991659,0.000365,30]
[314525257,1708404651627,-500.0,0.000365,2]
[314525258,1708404651637,-500.0,0.000365,2]
[314525259,1708404651648,-500.0,0.000365,2]
[314525260,1708404651658,-500.0,0.000365,2]
[314525261,1708404651667,-500.0,0.000365,2]
[314525262,1708404651678,-500.0,0.000365,2]
[314525263,1708404651688,-500.0,0.000365,2]
[314525264,1708404651697,-500.0,0.000365,2]
[314525265,1708404651706,-555.30154886,0.000365,2]
[314525266,1708404651716,-500.0,0.000365,2]
[314525267,1708404651725,-500.0,0.000365,2]
[314525268,1708404651734,-500.0,0.000365,2]
[314525269,1708404651744,-500.0,0.000365,2]
[314525270,1708404651754,-518.81442837,0.000365,2]
[314525271,1708404651763,-500.0,0.000365,2]
[314525272,1708404651772,-909.05,0.000365,2]
[314525273,1708404651781,-500.0,0.000365,2]
[314525274,1708404651790,-500.0,0.000365,2]
[314525275,1708404651800,-500.0,0.000365,2]
[314525276,1708404651809,-500.0,0.000365,2]
[314525277,1708404651818,-2660.73,0.000365,2]
[314525278,1708404651828,-500.0,0.000365,2]
[314525279,1708404651837,-1323.38,0.000365,2]
[314525280,1708404651846,-500.0,0.000365,2]
[314525281,1708404651855,-500.0,0.000365,2]
[314525282,1708404651864,-617.5,0.000365,2]
[314525283,1708404651874,-736.89,0.000365,2]
[314525284,1708404651883,-500.0,0.000365,2]
[314525285,1708404651892,-1002.14,0.000365,2]
[314525286,1708404651901,-500.0,0.000365,2]
[314525287,1708404651911,-1539.09,0.000365,2]
[314525288,1708404651920,-500.0,0.000365,2]
[314525289,1708404651929,-500.0,0.000365,2]
[314525290,1708404651937,-2459.94,0.000365,2]
[314525291,1708404651946,-500.0,0.000365,2]
[314525292,1708404651956,-500.0,0.000365,2]
[314525293,1708404651964,-500.0,0.000365,2]
[314525294,1708404651974,-1034.95,0.000365,2]
[314525295,1708404651983,-21758.28,0.000365,2]
[314525296,1708404651992,-500.0,0.000365,2]
[314525297,1708404652002,-585.7678742,0.000365,2]
[314525298,1708404652011,-4779.65,0.000365,2]
[314525299,1708404652020,-1076.11,0.000365,2]
[314525300,1708404652029,-500.0,0.000365,2]
[314525301,1708404652038,-500.0,0.000365,2]
[314525302,1708404652048,-1051.68,0.000365,2]
[314525303,1708404652058,-304.38538098,0.000365,2]
[314525304,1708404652067,-544.35,0.000365,2]
[314525305,1708404652077,-1240.95,0.000365,2]
[314525306,1708404652086,-500.0,0.000365,2]
[314525307,1708404652095,-500.0,0.000365,2]
[314525308,1708404652104,-804.41,0.000365,2]
[314525309,1708404652114,-500.0,0.000365,2]
[314525310,1708404652123,-500.0,0.000365,2]
[314525311,1708404652132,-500.0,0.000365,2]
[314525312,1708404652141,-1791.4,0.000365,2]
[314525313,1708404652150,-1107.49,0.000365,2]
[314525314,1708404652160,-500.0,0.000365,2]
[314525315,1708404652169,-500.0,0.000365,2]
[314525316,1708404652179,-7115.33,0.000365,2]
[314525317,1708404652188,-500.0,0.000365,2]
[314525318,1708404652197,-1921.15,0.000365,2]
[314525319,1708404652207,-500.0,0.000365,2]
[314525320,1708404652216,-500.0,0.000365,2]
[314525321,1708404652226,-739.65,0.000365,2]
[314525322,1708404652235,-500.0,0.000365,2]
[314525323,1708404652244,-500.0,0.000365,2]
[314525324,1708404652254,-500.0,0.000365,2]
[314525325,1708404652263,-500.0,0.000365,2]
[314525326,1708404652273,-500.0,0.000365,2]
[314525327,1708404652282,-1256.67,0.000365,2]
[314525328,1708404652291,-1247.91,0.000365,2]
[314525329,1708404652300,-500.0,0.000365,2]
[314525330,1708404652309,-973.4,0.000365,2]
[314525331,1708404652319,-3583.1,0.000365,2]
[314525332,1708404652328,-500.0,0.000365,2]
[314525333,1708404652337,-1023.32,0.000365,2]
[314525334,1708404652347,-1031.56,0.000365,2]
[314525335,1708404652356,-946.01,0.000365,2]
[314525336,1708404652366,-500.0,0.000365,2]
[314525337,1708404652375,-500.0,0.000365,2]
[314525338,1708404652384,-907.38,0.000365,2]
[314525339,1708404652393,-500.0,0.000365,2]
[314525340,1708404652403,-1935.84,0.000365,2]
[314525341,1708404652412,-889.49,0.000365,2]
[314525342,1708404652421,-562.0,0.000365,2]
[314525343,1708404652431,-4041.88,0.000365,2]
[314525344,1708404652440,-500.0,0.000365,2]
[314525345,1708404652449,-896.14,0.000365,2]
[314525346,1708404652458,-500.0,0.000365,2]
[314525347,1708404652467,-500.0,0.000365,2]
[314525348,1708404652476,-1491.78,0.000365,2]
[314525349,1708404652485,-500.0,0.000365,2]
[314525350,1708404652494,-5783.7,0.000365,2]
[314525351,1708404652504,-500.0,0.000365,2]
[314525352,1708404652513,-500.0,0.000365,2]
[314525353,1708404652522,-2884.05,0.000365,2]
[314525354,1708404652531,-1119.13,0.000365,2]
[314525355,1708404652540,-1193.12,0.000365,2]
[314525356,1708404652549,-576.84238986,0.000365,2]
[314525357,1708404652559,-500.0,0.000365,2]
[314525358,1708404652568,-500.0,0.000365,2]
[314525359,1708404652577,-1702.67,0.000365,2]
[314525360,1708404652587,-500.0,0.000365,2]
[314525361,1708404652596,-1367.11,0.000365,2]
[314525362,1708404652607,-500.0,0.000365,2]
[314525363,1708404652616,-500.0,0.000365,2]
[314525364,1708404652626,-331.18295594,0.000365,2]
[314525365,1708404652636,-8337.97,0.000365,2]
[314525366,1708404652644,-519.38541354,0.000365,2]
[314525367,1708404652654,-500.0,0.000365,2]
[314525368,1708404652663,-3196.77,0.000365,2]
[314525369,1708404652672,-654.34,0.000365,2]
[314525370,1708404652682,-875.11,0.000365,2]
[314525371,1708404652691,-500.0,0.000365,2]
[314525372,1708404652701,-601.27,0.000365,2]
[314525373,1708404652709,-500.0,0.000365,2]
[314525374,1708404652719,-500.0,0.000365,2]
[314525375,1708404652728,-1060.48,0.000365,2]
[314525376,1708404652738,-716.64,0.000365,2]
[314525377,1708404652747,-500.0,0.000365,2]
[314525378,1708404652756,-500.0,0.000365,2]
[314525379,1708404652766,-500.0,0.000365,2]
[314525380,1708404652776,-574.45,0.000365,2]
[314525381,1708404652785,-500.0,0.000365,2]
[314525382,1708404652795,-918.96,0.000365,2]
[314525383,1708404652804,-500.0,0.000365,2]
[314525384,1708404652814,-972.71,0.000365,2]
[314525385,1708404652825,-866.26,0.000365,2]
[314525386,1708404652834,-500.0,0.000365,2]
[314525387,1708404652845,-500.0,0.00036501,2]
[314525388,1708404652854,-855.19,0.00036501,2]
[314525389,1708404652863,-500.0,0.00036501,2]
[314525390,1708404652872,-500.0,0.00036501,2]
[314525391,1708404652881,-1469.7,0.00036501,2]
[314525392,1708404652891,-500.0,0.00036501,2]
[314525393,1708404652900,-500.0,0.00036501,2]
[314525394,1708404652909,-500.0,0.00036501,2]
[314525395,1708404652918,-504.79,0.00036501,2]
[314525396,1708404652926,-500.0,0.00036501,2]
[314525397,1708404652936,-655.92,0.00036501,2]
[314525398,1708404652945,-500.0,0.00036501,2]
[314525399,1708404652954,-500.0,0.00036501,2]
[314525400,1708404652963,-500.0,0.00036501,2]
[314525401,1708404652972,-500.0,0.00036501,2]
[314525402,1708404652981,-500.0,0.00036501,2]
[314525403,1708404652990,-1802.71,0.00036501,2]
[314525404,1708404652999,-1026.8,0.00036501,2]
[314525405,1708404653008,-549.92,0.00036501,2]
[314525406,1708404653018,-500.0,0.00036501,2]
[314525407,1708404653027,-500.0,0.00036501,2]
[314525408,1708404653035,-500.0,0.00036501,2]
[314525409,1708404653045,-500.0,0.00036501,2]
[314525410,1708404653054,-500.0,0.00036501,2]
[314525411,1708404653063,-500.0,0.00036501,2]
[314525412,1708404653072,-500.0,0.00036501,2]
[314525413,1708404653081,-500.0,0.00036501,2]
[314525414,1708404653090,-500.0,0.00036501,2]
[314525415,1708404653099,-500.0,0.00036501,2]
[314525416,1708404653108,-500.0,0.00036501,2]
[314525417,1708404653118,-500.0,0.00036501,2]
[314525418,1708404653128,-500.0,0.00036501,2]
[314525419,1708404653137,-500.0,0.00036501,2]
[314525420,1708404653147,-572.97,0.00036501,2]
[314525421,1708404653157,-500.0,0.00036501,2]
[314525422,1708404653166,-500.0,0.00036501,2]
[314525423,1708404653176,-500.0,0.00036501,2]
[314525424,1708404653185,-500.0,0.00036501,2]
[314525425,1708404653195,-500.0,0.00036501,2]
[314525426,1708404653205,-500.0,0.00036501,2]
[314525427,1708404653214,-500.0,0.00036501,2]
[314525428,1708404653223,-500.0,0.00036501,2]
[314525429,1708404653233,-500.0,0.00036501,2]
[314525430,1708404653242,-523.36,0.00036501,2]
[314525431,1708404653252,-500.0,0.00036501,2]
[314525432,1708404653262,-500.0,0.00036501,2]
[314525433,1708404653272,-500.0,0.00036501,2]
[314525434,1708404653281,-604.09,0.00036501,2]
[314525435,1708404653292,-500.0,0.00036501,2]
[314525436,1708404653301,-500.0,0.00036501,2]
[314525437,1708404653310,-578.69,0.00036501,2]
[314525438,1708404653319,-548.4,0.00036501,2]
[314525439,1708404653329,-500.0,0.00036501,2]
[314525440,1708404653338,-952.38,0.00036501,2]
[314525441,1708404653348,-500.0,0.00036501,2]
[314525442,1708404653357,-240.67634853,0.00036501,2]
[314525443,1708404653366,-500.0,0.00036501,2]
[314525444,1708404653376,-500.0,0.00036501,2]
[314525445,1708404653385,-694.62,0.00036501,2]
[314525446,1708404653395,-500.0,0.00036501,2]
[314525447,1708404653405,-500.0,0.00036501,2]
[314525448,1708404653415,-500.0,0.00036501,2]
[314525449,1708404653424,-500.0,0.00036501,2]
[314525450,1708404653433,-200.61,0.00036501,2]
[314525451,1708404653443,-781.79,0.00036501,2]
[314525452,1708404653453,-2321.94,0.00036501,2]
[314525453,1708404653462,-521.74,0.00036501,2]
[314525454,1708404653471,-738.55,0.00036501,2]
[314525455,1708404653480,-500.0,0.00036501,2]
[314525456,1708404653490,-500.0,0.00036501,2]
[314525457,1708404653499,-2120.58,0.00036501,2]
[314525458,1708404653508,-500.0,0.00036501,2]
[314525459,1708404653517,-500.0,0.00036501,2]
[314525460,1708404653527,-1144.04,0.00036501,2]
[314525461,1708404653536,-553.19,0.00036501,2]
[314525462,1708404653545,-1218.97,0.00036501,2]
[314525463,1708404653555,-679.54,0.00036501,2]
[314525464,1708404653564,-955.01,0.00036501,2]
[314525465,1708404653574,-602.71,0.00036501,2]
[314525466,1708404653584,-784.52,0.00036501,2]
[314525467,1708404653594,-2327.33,0.00036501,2]
[314525468,1708404653608,-1562.34,0.00036501,2]
[314525469,1708404653618,-500.0,0.00036501,2]
[314525470,1708404653628,-500.0,0.00036501,2]
[314525471,1708404653639,-881.72,0.00036501,2]
[314525472,1708404653648,-598.05,0.00036501,2]
[314525473,1708404653658,-2409.25,0.00036501,2]
[314525474,1708404653667,-500.0,0.00036501,2]
[314525475,1708404653679,-1770.81,0.00036501,2]
[314525476,1708404653688,-1622.36,0.00036501,2]
[314525477,1708404653698,-681.65,0.00036501,2]
[314525478,1708404653707,-731.49,0.00036501,2]
[314525479,1708404653717,-1891.26,0.00036501,2]
[314525480,1708404653727,-1387.56,0.00036501,2]
[314525481,1708404653737,-598.04,0.00036501,2]
[314525482,1708404653746,-1305.79,0.00036501,2]
[314525483,1708404653756,-3172.24,0.00036501,2]
[314525484,1708404653766,-500.0,0.00036501,2]
[314525485,1708404653775,-1740.42,0.00036501,2]
[314525486,1708404653785,-500.0,0.00036501,2]
[314525487,1708404653794,-2498.33,0.00036501,2]
[314525488,1708404653804,-500.0,0.00036501,2]
[314525489,1708404653813,-1245.94,0.00036501,2]
[314525490,1708404653823,-710.74,0.00036501,2]
[314525491,1708404653832,-500.0,0.00036501,2]
[314525492,1708404653842,-1758.44,0.00036501,2]
[314525493,1708404653851,-500.0,0.00036501,2]
[314525494,1708404653861,-735.45,0.00036501,2]
[314525495,1708404653870,-500.0,0.00036501,2]
[314525496,1708404653881,-1385.32,0.00036501,2]
[314525497,1708404653891,-1196.35,0.00036501,2]
[314525498,1708404653900,-3337.25,0.00036501,2]
[314525499,1708404653909,-1624.65,0.00036501,2]
[314525500,1708404653919,-500.0,0.00036501,2]
[314525501,1708404653928,-500.0,0.00036501,2]
[314525502,1708404653938,-598.29,0.00036501,2]
[314525503,1708404653948,-628.8,0.00036501,2]
[314525504,1708404653958,-1236.35,0.00036501,2]
[314525505,1708404653967,-558.16,0.00036501,2]
[314525506,1708404653976,-852.28,0.00036501,2]
[314525507,1708404653985,-9383.72,0.00036501,2]
[314525508,1708404653995,-5004.23,0.00036501,2]
[314525509,1708404654004,-4206.68,0.00036501,2]
[314525510,1708404654014,-500.0,0.00036501,2]
[314525511,1708404654023,-500.0,0.00036501,2]
[314525512,1708404654032,-812.79,0.00036501,2]
[314525513,1708404654041,-500.0,0.00036501,2]
[314525514,1708404654051,-1327.49,0.00036501,2]
[314525515,1708404654060,-500.0,0.00036501,2]
[314525516,1708404654070,-452.16457857,0.00036501,2]
[314525517,1708404654079,-2262.08,0.00036501,2]
[314525518,1708404654089,-2369.72,0.00036501,2]
[314525519,1708404654099,-670.05,0.00036501,2]
[314525520,1708404654108,-823.48,0.00036501,2]
[314525521,1708404654117,-500.0,0.00036501,2]
[314525522,1708404654127,-3631.45,0.00036501,2]
[314525523,1708404654136,-1466.49,0.00036501,2]
[314525524,1708404654145,-917.5,0.00036501,2]
[314525525,1708404654154,-500.0,0.00036501,2]
[314525526,1708404654164,-500.0,0.00036501,2]
[314525527,1708404654173,-1816.69,0.00036501,2]
[314525528,1708404654182,-617.42,0.00036501,2]
[314525529,1708404654191,-918.81,0.00036501,2]
[314525530,1708404654201,-1426.37,0.00036501,2]
[314525531,1708404654210,-500.0,0.00036501,2]
[314525532,1708404654218,-1332.3,0.00036501,2]
[314525533,1708404654227,-2209.99,0.00036501,2]
[314525534,1708404654237,-500.0,0.00036501,2]
[314525535,1708404654246,-1559.19,0.00036501,2]
[314525536,1708404654256,-500.0,0.00036501,2]
[314525537,1708404654265,-500.0,0.00036501,2]
[314525538,1708404654275,-500.0,0.00036501,2]
[314525539,1708404654285,-6563.77,0.00036501,2]
[314525540,1708404654295,-500.0,0.00036501,2]
[314525541,1708404654304,-500.0,0.00036501,2]
[314525542,1708404654314,-1224.46,0.00036501,2]
[314525543,1708404654323,-2386.58,0.00036501,2]
[314525544,1708404654333,-500.0,0.00036501,2]
[314525545,1708404654342,-2001.87,0.00036501,2]
[314525546,1708404654352,-1466.78,0.00036501,2]
[314525547,1708404654361,-642.62,0.00036501,2]
[314525548,1708404654370,-500.0,0.00036501,2]
[314525549,1708404654380,-29337.74998683,0.00036501,2]
[314525550,1708404654390,-180.61625505,0.00036523,2]
[314525551,1708404654400,-5538.11056031,0.00036526,9]
[314525552,1708404654410,-167.62,0.00036527,2]
[314525553,1708404654419,-150.0,0.0003655,20]
[314525554,1708404654601,-209.0,0.00036561,10]
[314525555,1708404654611,-619.14841119,0.00036587,8]
[314525556,1708404654621,-500.0,0.00036599,2]
[314525557,1708404654631,-500.0,0.00036599,2]
[314525558,1708404654641,-500.0,0.00036599,2]
[314525559,1708404654650,-575.34877173,0.00036599,2]
[314525560,1708404654660,-500.0,0.00036599,2]
[314525561,1708404654670,-500.0,0.00036599,2]
[314525562,1708404654681,-500.0,0.00036599,2]
[314525563,1708404654691,-679.06,0.00036599,2]
[314525564,1708404654701,-500.0,0.00036599,2]
[314525565,1708404654710,-500.0,0.00036599,2]
[314525566,1708404654719,-500.0,0.00036599,2]
[314525567,1708404654729,-500.0,0.00036599,2]
[314525568,1708404654738,-500.0,0.00036599,2]
[314525569,1708404654747,-500.0,0.00036599,2]
[314525570,1708404654757,-500.0,0.00036599,2]
[314525571,1708404654767,-500.0,0.00036599,2]
[314525572,1708404654777,-500.0,0.00036599,2]
[314525573,1708404654786,-500.0,0.00036599,2]
[314525574,1708404654795,-335.51440693,0.00036599,2]
[314525575,1708404654805,-500.0,0.00036599,2]
[314525576,1708404654814,-500.0,0.00036599,2]
[314525577,1708404654823,-500.0,0.00036599,2]
[314525578,1708404654833,-500.0,0.00036599,2]
[314525579,1708404654843,-500.0,0.00036599,2]
[314525580,1708404654852,-541.56333571,0.00036599,2]
[314525581,1708404654861,-500.0,0.00036599,2]
[314525582,1708404654871,-532.77,0.00036599,2]
[314525583,1708404654881,-500.0,0.00036599,2]
[314525584,1708404654890,-500.0,0.00036599,2]
[314525585,1708404654899,-500.0,0.00036599,2]
[314525586,1708404654909,-286.57332618,0.00036599,2]
[314525587,1708404654918,-487.66825247,0.00036599,2]
[314525588,1708404654927,-1000.0,0.00036599,2]
[314525589,1708404654936,-500.0,0.00036599,2]
[314525590,1708404654945,-500.0,0.00036599,2]
[314525591,1708404654955,-500.0,0.00036599,2]
[314525592,1708404654964,-640.49729443,0.00036599,2]
[314525593,1708404654973,-500.0,0.00036599,2]
[314525594,1708404654983,-500.0,0.00036599,2]
[314525595,1708404654992,-544.20267335,0.00036599,2]
[314525596,1708404655001,-583.81,0.00036599,2]
[314525597,1708404655011,-500.0,0.00036599,2]
[314525598,1708404655020,-500.0,0.00036599,2]
[314525599,1708404655029,-500.0,0.00036599,2]
[314525600,1708404655039,-500.0,0.00036599,2]
[314525601,1708404655048,-904.92,0.00036599,2]
[314525602,1708404655057,-500.0,0.00036599,2]
[314525603,1708404655067,-517.748382,0.00036599,2]
[314525604,1708404655076,-500.0,0.00036599,2]
[314525605,1708404655085,-500.0,0.00036599,2]
[314525606,1708404655095,-500.0,0.00036599,2]
[314525607,1708404655105,-500.0,0.00036599,2]
[314525608,1708404655114,-500.0,0.00036599,2]
[314525609,1708404655124,-500.0,0.00036599,2]
[314525610,1708404655133,-507.37484039,0.00036599,2]
[314525611,1708404655142,-500.0,0.00036599,2]
[314525612,1708404655151,-500.0,0.00036599,2]
[314525613,1708404655161,-500.0,0.00036599,2]
[314525614,1708404655171,-500.0,0.00036599,2]
[314525615,1708404655180,-544.82396578,0.00036599,2]
[314525616,1708404655189,-500.0,0.00036599,2]
[314525617,1708404655199,-500.0,0.00036599,2]
[314525618,1708404655208,-500.0,0.00036599,2]
[314525619,1708404655218,-500.0,0.00036599,2]
[314525620,1708404655228,-500.0,0.00036599,2]
[314525621,1708404655238,-500.0,0.00036599,2]
[314525622,1708404655247,-500.0,0.00036599,2]
[314525623,1708404655257,-500.0,0.00036599,2]
[314525624,1708404655267,-500.0,0.00036599,2]
[314525625,1708404655276,-500.0,0.00036599,2]
[314525626,1708404655286,-500.0,0.00036599,2]
[314525627,1708404655296,-500.0,0.00036599,2]
[314525628,1708404655306,-703.38,0.00036599,2]
[314525629,1708404655315,-500.0,0.00036599,2]
[314525630,1708404655325,-500.0,0.00036599,2]
[314525631,1708404655335,-500.0,0.00036599,2]
[314525632,1708404655345,-500.0,0.00036599,2]
[314525633,1708404655354,-500.0,0.00036599,2]
[314525634,1708404655364,-500.0,0.00036599,2]
[314525635,1708404655374,-500.0,0.00036599,2]
[314525636,1708404655384,-500.0,0.00036599,2]
[314525637,1708404655393,-505.96,0.00036599,2]
[314525638,1708404655403,-500.0,0.00036599,2]
[314525639,1708404655412,-500.0,0.00036599,2]
[314525640,1708404655422,-500.0,0.00036599,2]
[314525641,1708404655432,-500.0,0.00036599,2]
[314525642,1708404655442,-500.0,0.00036599,2]
[314525643,1708404655452,-500.0,0.00036599,2]
[314525644,1708404655461,-500.0,0.00036599,2]
[314525645,1708404655471,-500.0,0.00036599,2]
[314525646,1708404655480,-500.0,0.00036599,2]
[314525647,1708404655490,-500.0,0.00036599,2]
[314525648,1708404655499,-500.0,0.00036599,2]
[314525649,1708404655509,-500.0,0.00036599,2]
[314525650,1708404655519,-601.96,0.00036599,2]
[314525651,1708404655528,-500.0,0.00036599,2]
[314525652,1708404655538,-500.0,0.00036599,2]
[314525653,1708404655547,-500.0,0.00036599,2]
[314525654,1708404655557,-571.34,0.00036599,2]
[314525655,1708404655566,-562.44,0.00036599,2]
[314525656,1708404655576,-500.0,0.00036599,2]
[314525657,1708404655794,-510.97,0.00036599,2]
[314525658,1708404655803,-500.0,0.00036599,2]
[314525659,1708404655813,-564.2509801,0.00036599,2]
[314525660,1708404655822,-500.0,0.00036599,2]
[314525661,1708404655831,-500.0,0.00036599,2]
[314525662,1708404655841,-159.98472547,0.00036599,2]
[314525663,1708404655850,-500.0,0.00036599,2]
[314525664,1708404655859,-500.0,0.00036599,2]
[314525665,1708404655868,-520.41526598,0.00036599,2]
[314525666,1708404655878,-500.0,0.00036599,2]
[314525667,1708404655888,-500.0,0.00036599,2]
[314525668,1708404655898,-500.0,0.00036599,2]
[314525669,1708404655907,-500.0,0.00036599,2]
[314525670,1708404655916,-500.0,0.00036599,2]
[314525671,1708404655926,-500.0,0.00036599,2]
[314525672,1708404655935,-500.0,0.00036599,2]
[314525673,1708404655944,-500.0,0.00036599,2]
[314525674,1708404655954,-526.68763142,0.00036599,2]
[314525675,1708404655963,-508.21770299,0.00036599,2]
[314525676,1708404655984,-500.0,0.00036599,2]
[314525677,1708404655994,-500.0,0.00036599,2]
[314525678,1708404656004,-500.0,0.00036599,2]
[314525679,1708404656015,-500.0,0.00036599,2]
[314525680,1708404656025,-500.0,0.00036599,2]
[314525681,1708404656035,-500.0,0.00036599,2]
[314525682,1708404656045,-500.0,0.00036599,2]
[314525683,1708404656054,-505.49780228,0.00036599,2]
[314525684,1708404656064,-500.0,0.00036599,2]
[314525685,1708404656074,-500.0,0.00036599,2]
[314525686,1708404656083,-1000.0,0.00036599,7]
[314525687,1708404656093,-20786.27,0.000366,7]